bitfinex/quotes_BTCUSD_20250428
["timestamp","ask_amount","ask_price","bid_price","bid_amount"]
[1745876492050,0.001,94462.0,94457.0,0.01058682]
[1745876492522,0.00744094,94463.0,94457.0,0.01058682]
[1745876492685,0.00744094,94463.0,94458.0,0.01058671]
[1745876492897,0.00744094,94462.0,94457.0,0.01058682]
[1745876493495,0.0499,94464.0,94457.0,0.01058682]
[1745876493882,0.0499,94464.0,94456.0,0.01058693]
[1745876494394,0.0499,94464.0,94457.0,0.01058682]
[1745876494593,0.00744087,94463.0,94456.0,0.01058693]
[1745876494799,0.00744087,94463.0,94457.0,0.01058682]
[1745876495039,0.00844087,94462.0,94457.0,0.01058682]
[1745876495418,0.00744087,94462.0,94457.0,0.01058682]
[1745876496163,0.0479,94464.0,94457.0,0.01058682]
[1745876496535,0.001,94462.0,94457.0,0.01058682]
[1745876496745,0.001,94462.0,94456.0,0.01058693]
[1745876497671,0.0479,94464.0,94456.0,0.01058693]
[1745876498010,0.00744065,94463.0,94448.0,0.00551886]
[1745876498218,0.0451,94462.0,94452.0,0.25535591]
[1745876498420,0.0451,94460.0,94452.0,0.25535591]
[1745876498848,0.046,94461.0,94452.0,0.25535591]
[1745876498849,0.02521748,94459.0,94452.0,0.25535591]
[1745876499079,0.05594065,94458.0,94452.0,0.25535591]
[1745876499291,0.0485,94456.0,94452.0,0.25535591]
[1745876499829,0.02521748,94455.0,94452.0,0.25535591]
[1745876500035,0.0485,94454.0,94452.0,0.25535591]
[1745876500457,0.0975,94453.0,94452.0,0.25535591]
[1745876500675,0.1226689,94453.0,94452.0,0.25535591]
[1745876502383,0.1226689,94453.0,94452.0,0.25635591]
[1745876503033,0.1226689,94453.0,94452.0,0.25535591]
[1745876503229,0.0995,94453.0,94452.0,0.25535591]
[1745876503399,0.1005,94453.0,94452.0,0.25535591]
[1745876503604,0.1256689,94453.0,94452.0,0.25535591]
[1745876504007,0.1256689,94453.0,94448.0,0.01661054]
[1745876504592,0.1005,94453.0,94448.0,0.01661054]
[1745876505024,0.0985,94453.0,94448.0,0.01661054]
[1745876505202,0.1015,94453.0,94448.0,0.01661054]
[1745876506169,0.1005,94453.0,94448.0,0.01661054]
[1745876506826,0.1015,94453.0,94448.0,0.01661054]
[1745876509792,0.02509085,94452.0,94448.0,0.01661054]
[1745876511030,0.02709085,94452.0,94448.0,0.01661054]
[1745876511231,0.02809085,94452.0,94448.0,0.01661054]
[1745876512176,0.003,94452.0,94448.0,0.01661054]
[1745876522785,0.00219326,94452.0,94448.0,0.01661054]
[1745876524216,0.00219326,94452.0,94448.0,0.02719837]
[1745876531273,0.00219326,94452.0,94448.0,0.01661054]
[1745876531982,0.00219326,94452.0,94448.0,0.01109168]
[1745876532194,0.00219326,94452.0,94446.0,0.01058806]
[1745876532491,0.00219326,94452.0,94448.0,0.01058783]
[1745876532695,0.00219326,94452.0,94446.0,0.01058806]
[1745876532696,0.00219326,94452.0,94447.0,0.01058794]
[1745876532993,0.0975,94453.0,94447.0,0.01058794]
[1745876533353,0.003,94452.0,94447.0,0.01058794]
[1745876533554,0.002,94452.0,94447.0,0.01058794]
[1745876533878,0.003,94452.0,94447.0,0.01058794]
[1745876534396,0.001,94452.0,94447.0,0.01058794]
[1745876536398,0.003,94452.0,94447.0,0.01058794]
[1745876536701,0.003,94452.0,94451.0,0.21175]
[1745876536966,0.02808987,94452.0,94451.0,0.21175]
[1745876537137,0.02808987,94452.0,94445.0,0.02019928]
[1745876537441,0.02808987,94452.0,94446.0,0.01058806]
[1745876537621,0.02708987,94452.0,94447.0,0.01058794]
[1745876537783,0.002,94452.0,94447.0,0.01058794]
[1745876537984,0.001,94452.0,94447.0,0.01058794]
[1745876538610,0.001,94452.0,94446.0,0.01058806]
[1745876538814,0.001,94452.0,94447.0,0.01058794]
[1745876539148,0.0975,94453.0,94447.0,0.01058794]
[1745876539345,0.002,94452.0,94447.0,0.01058794]
[1745876539551,0.003,94452.0,94446.0,0.01058806]
[1745876539872,0.00743264,94451.0,94447.0,0.01058794]
[1745876540947,0.003,94452.0,94447.0,0.01058794]
[1745876542290,0.001,94451.0,94447.0,0.01058794]
[1745876542572,0.002,94451.0,94447.0,0.01058794]
[1745876543427,0.002,94451.0,94446.0,0.0302473]
[1745876543428,0.003,94451.0,94446.0,0.0302473]
[1745876544311,0.003,94451.0,94447.0,0.01058794]
[1745876544473,0.00743096,94450.0,94447.0,0.01058794]
[1745876545139,0.00743096,94449.0,94447.0,0.01058794]
[1745876545545,0.00743096,94449.0,94446.0,0.0302473]
[1745876546167,0.001,94450.0,94447.0,0.01058794]
[1745876546370,0.001,94449.0,94446.0,0.0302473]
[1745876546588,0.002,94449.0,94446.0,0.0302473]
[1745876546907,0.001,94449.0,94446.0,0.0302473]
[1745876547059,0.002,94449.0,94446.0,0.0302473]
[1745876549917,0.002,94449.0,94446.0,0.01965924]
[1745876550066,0.002,94449.0,94446.0,0.0302473]
[1745876550265,0.002,94449.0,94446.0,0.01058806]
[1745876556913,0.002,94449.0,94445.0,0.01058817]
[1745876557142,0.002,94449.0,94446.0,0.01058806]
[1745876558180,0.001,94449.0,94446.0,0.01058806]
[1745876558383,0.002,94449.0,94446.0,0.01058806]
[1745876558815,0.001,94449.0,94446.0,0.01058806]
[1745876559278,0.002,94449.0,94446.0,0.01058806]
[1745876568465,0.002,94449.0,94443.0,0.01058839]
[1745876568674,0.0453,94448.0,94442.0,0.0105885]
[1745876568832,0.0453,94448.0,94445.0,0.01058817]
[1745876569037,0.0453,94448.0,94444.0,0.01058828]
[1745876569235,0.0453,94448.0,94445.0,0.01058817]
[1745876569450,0.0453,94448.0,94444.0,0.01058828]
[1745876570041,0.0453,94448.0,94443.0,0.22235473]
[1745876570238,0.0453,94448.0,94444.0,0.01058828]
[1745876570786,0.0463,94448.0,94444.0,0.01058828]
[1745876570953,0.0453,94448.0,94444.0,0.01058828]
[1745876571595,0.0473,94448.0,94443.0,0.01058839]
[1745876573094,0.0463,94448.0,94443.0,0.01058839]
[1745876573485,0.0473,94448.0,94439.0,0.22257333]
[1745876573680,0.0473,94448.0,94441.0,0.01058862]
[1745876574119,0.0463,94448.0,94442.0,0.0105885]
[1745876574493,0.0463,94448.0,94441.0,0.01058862]
[1745876574750,0.0473,94448.0,94442.0,0.0105885]
[1745876574924,0.0483,94448.0,94438.0,0.01058895]
[1745876575124,0.0463,94448.0,94439.0,0.01058884]
[1745876575344,0.0473,94448.0,94438.0,0.01058895]
[1745876575713,0.0473,94448.0,94439.0,0.01058884]
[1745876575909,0.0473,94448.0,94438.0,0.0287968]
[1745876576116,0.0473,94448.0,94438.0,0.01058895]
[1745876576429,0.0483,94448.0,94438.0,0.01058895]
[1745876576832,0.0473,94448.0,94438.0,0.01058895]
[1745876577027,0.0453,94448.0,94438.0,0.01058895]
[1745876577234,0.0463,94448.0,94438.0,0.01058895]
[1745876577528,0.0473,94448.0,94438.0,0.01058895]
[1745876578616,0.0473,94448.0,94439.0,0.01058884]
[1745876579069,0.0473,94448.0,94438.0,0.01058895]
[1745876579392,0.0463,94448.0,94438.0,0.01058895]
[1745876579898,0.0473,94448.0,94438.0,0.01058895]
[1745876580103,0.0463,94448.0,94438.0,0.01058895]
[1745876580303,0.0453,94448.0,94438.0,0.01058895]
[1745876580600,0.0463,94448.0,94438.0,0.01058895]
[1745876580936,0.0473,94448.0,94438.0,0.01058895]
[1745876583915,0.0473,94448.0,94439.0,0.01058884]
[1745876584769,0.0463,94448.0,94439.0,0.01058884]
[1745876584989,0.0463,94448.0,94438.0,0.01058895]
[1745876585146,0.0473,94448.0,94438.0,0.01058895]
[1745876585774,0.0473,94448.0,94439.0,0.01058884]
[1745876586006,0.0463,94448.0,94439.0,0.01058884]
[1745876586241,0.0453,94448.0,94439.0,0.01058884]
[1745876586372,0.0463,94448.0,94439.0,0.01058884]
[1745876586565,0.0473,94448.0,94439.0,0.01058884]
[1745876586989,0.0483,94448.0,94439.0,0.01058884]
[1745876587930,0.0483,94448.0,94437.0,0.01795258]
[1745876588104,0.0483,94448.0,94436.0,0.01609725]
[1745876588671,0.0483,94448.0,94436.0,0.03435579]
[1745876588881,0.0483,94448.0,94436.0,0.01609725]
[1745876589081,0.0473,94448.0,94436.0,0.01609725]
[1745876589283,0.0463,94448.0,94436.0,0.01609725]
[1745876589544,0.0463,94448.0,94437.0,0.01058906]
[1745876589545,0.0473,94448.0,94437.0,0.01058906]
[1745876590025,0.0463,94448.0,94437.0,0.01058906]
[1745876590231,0.0473,94448.0,94437.0,0.01058906]
[1745876590519,0.0453,94448.0,94437.0,0.01058906]
[1745876590714,0.0463,94448.0,94437.0,0.01058906]
[1745876590883,0.0473,94448.0,94437.0,0.01058906]
[1745876596530,0.0473,94448.0,94438.0,0.01058895]
[1745876596888,0.0473,94448.0,94437.0,0.01058906]
[1745876598032,0.0463,94448.0,94437.0,0.01058906]
[1745876598349,0.0473,94448.0,94438.0,0.01058895]
[1745876598511,0.0463,94448.0,94438.0,0.01058895]
[1745876599153,0.0453,94448.0,94439.0,0.01058884]
[1745876599360,0.0463,94448.0,94439.0,0.01058884]
[1745876599654,0.0453,94448.0,94439.0,0.01058884]
[1745876599876,0.0463,94448.0,94439.0,0.01058884]
[1745876600092,0.0473,94448.0,94439.0,0.01058884]
[1745876600298,0.0463,94448.0,94439.0,0.01058884]
[1745876601078,0.0453,94448.0,94439.0,0.01058884]
[1745876601310,0.0463,94448.0,94439.0,0.01058884]
[1745876601487,0.0473,94448.0,94439.0,0.01058884]
[1745876602448,0.0473,94448.0,94438.0,0.01058895]
[1745876603258,0.0463,94448.0,94438.0,0.01058895]
[1745876604002,0.0453,94448.0,94439.0,0.01058884]
[1745876604197,0.0463,94448.0,94439.0,0.01058884]
[1745876604566,0.0473,94448.0,94439.0,0.01058884]
[1745876604695,0.0473,94448.0,94440.0,0.01058873]
[1745876604901,0.0453,94448.0,94440.0,0.01058873]
[1745876605101,0.0463,94448.0,94440.0,0.01058873]
[1745876605303,0.0473,94448.0,94440.0,0.01058873]
[1745876605708,0.0463,94448.0,94440.0,0.01058873]
[1745876605915,0.0453,94448.0,94440.0,0.01058873]
[1745876606162,0.0463,94448.0,94440.0,0.01058873]
[1745876606372,0.0473,94448.0,94440.0,0.01058873]
[1745876606860,0.00742823,94447.0,94440.0,0.01058873]
[1745876607839,0.001,94447.0,94439.0,0.01058884]
[1745876608056,0.002,94447.0,94439.0,0.01058884]
[1745876608457,0.002,94447.0,94440.0,0.01985916]
[1745876608655,0.0453,94448.0,94440.0,0.03044789]
[1745876608892,0.002,94447.0,94441.0,0.01985916]
[1745876609512,0.003,94447.0,94441.0,0.01985916]
[1745876609716,0.0473,94446.0,94442.0,0.01985916]
[1745876609893,0.0473,94446.0,94443.0,0.01985916]
[1745876610539,0.0473,94446.0,94444.0,0.01985916]
[1745876610877,0.02504044,94445.0,94438.0,0.01058895]
[1745876611077,0.0946,94444.0,94436.0,0.00550807]
[1745876611296,0.0473,94443.0,94437.0,0.01985956]
[1745876611893,0.0473,94443.0,94438.0,0.01985956]
[1745876612116,0.04734555,94443.0,94438.0,0.01985956]
[1745876612719,0.04734555,94443.0,94436.0,0.00550807]
[1745876616005,0.04734555,94443.0,94436.0,0.01609725]
[1745876619669,0.04734555,94443.0,94437.0,0.01058906]
[1745876619885,0.04734555,94443.0,94436.0,0.01609725]
[1745876620102,0.04734555,94443.0,94436.0,0.35609725]
[1745876620951,0.04734555,94443.0,94436.0,0.01609725]
[1745876621207,0.04734555,94443.0,94437.0,0.01058906]
[1745876621697,0.04734555,94443.0,94434.0,0.21178594]
[1745876622888,0.04734555,94443.0,94437.0,0.01058906]
[1745876626545,0.04734555,94443.0,94438.0,0.01058895]
[1745876628376,0.04734555,94443.0,94440.0,0.01058873]
[1745876628831,0.04734555,94443.0,94439.0,0.01058884]
[1745876630299,0.04834555,94443.0,94439.0,0.01058884]
[1745876630563,0.04834555,94443.0,94440.0,0.01058873]
[1745876630800,0.05234555,94443.0,94441.0,0.00211742]
[1745876631049,0.05234555,94443.0,94440.0,0.01058873]
[1745876631286,0.05234555,94443.0,94439.0,0.01058884]
[1745876631481,0.04934555,94443.0,94440.0,0.01058873]
[1745876631633,0.00504555,94443.0,94440.0,0.01058873]
[1745876631876,0.00504555,94443.0,94441.0,0.21177242]
[1745876632085,0.00304555,94443.0,94441.0,0.21177242]
[1745876632492,0.00304555,94443.0,94440.0,0.22236144]
[1745876632871,4.555e-05,94443.0,94440.0,0.22236144]
[1745876633119,4.555e-05,94443.0,94441.0,0.46712634]
[1745876633300,0.00404555,94443.0,94441.0,0.46712634]
[1745876633655,0.00404555,94443.0,94441.0,0.25535591]
[1745876633855,0.00104555,94443.0,94441.0,0.25535591]
[1745876634113,0.0475,94442.0,94441.0,0.25535591]
[1745876634315,0.0475,94442.0,94431.0,0.0004239]
[1745876634316,0.10689014,94442.0,94431.0,0.0004239]
[1745876634548,0.10689014,94441.0,94431.0,0.0004239]
[1745876634823,0.0455,94439.0,94431.0,0.0004239]
[1745876635047,0.07985088,94438.0,94431.0,0.0004239]
[1745876635179,0.05808906,94437.0,94431.0,0.0004239]
[1745876635383,0.0248391,94436.0,94431.0,0.0004239]
[1745876635615,0.0475,94435.0,94431.0,0.0004239]
[1745876635987,0.0248391,94434.0,94431.0,0.0004239]
[1745876636187,0.10689014,94438.0,94431.0,0.0004239]
[1745876636386,0.0474,94433.0,94431.0,0.0004239]
[1745876637210,0.05481597,94432.0,94431.0,0.0004239]
[1745876639431,0.0474,94432.0,94431.0,0.0004239]
[1745876639635,0.0494,94432.0,94431.0,0.0004239]
[1745876640080,0.0504,94432.0,94431.0,0.0004239]
[1745876643527,0.15729014,94432.0,94431.0,0.0004239]
[1745876647563,0.15529014,94432.0,94431.0,0.0004239]
[1745876647968,0.15729014,94432.0,94431.0,0.0004239]
[1745876648197,0.18505755,94432.0,94431.0,0.0004239]
[1745876649558,0.18205755,94432.0,94431.0,0.0004239]
[1745876649759,0.18505755,94432.0,94430.0,1.3691104]
[1745876649959,0.15319014,94431.0,94430.0,1.3691104]
[1745876651323,0.15519014,94431.0,94430.0,1.3691104]
[1745876652710,0.15719014,94431.0,94430.0,1.3691104]
[1745876660390,0.004,94431.0,94430.0,1.3691104]
[1745876660619,0.004,94431.0,94430.0,1.4069104]
[1745876661005,0.004,94431.0,94430.0,1.4387164]
[1745876662081,0.002,94431.0,94430.0,1.4387164]
[1745876662296,0.003,94431.0,94430.0,1.4387164]
[1745876662462,0.001,94431.0,94430.0,1.69407231]
[1745876662803,0.002,94431.0,94430.0,1.69407231]
[1745876665399,0.002,94431.0,94430.0,1.70216206]
[1745876668842,0.002,94431.0,94430.0,1.66436206]
[1745876673354,0.002,94431.0,94430.0,1.6698681]
[1745876673920,0.002,94431.0,94430.0,1.6380621]
[1745876695867,0.002,94431.0,94430.0,1.42318841]
[1745876708430,0.002,94431.0,94430.0,1.53007855]
[1745876710427,0.001,94431.0,94430.0,1.53007855]
[1745876710658,0.0467,94451.0,94440.0,0.01058873]
[1745876710814,0.0467,94451.0,94441.0,0.21177242]
[1745876711837,0.00204555,94443.0,94441.0,0.21177242]
[1745876712041,0.00404555,94443.0,94441.0,0.21177242]
[1745876712214,0.00204555,94443.0,94441.0,0.46712833]
[1745876713540,0.00404555,94443.0,94441.0,0.46712833]
[1745876714086,0.00395261,94443.0,94441.0,0.46712833]
[1745876719902,0.00395261,94443.0,94441.0,0.48625868]
[1745876743936,0.0494,94442.0,94441.0,0.27448626]
[1745876744650,0.06673228,94442.0,94441.0,0.27448626]
[1745876744934,0.22322242,94442.0,94441.0,0.25535591]
[1745876745300,0.23265315,94442.0,94441.0,0.25535591]
[1745876745601,0.23465315,94442.0,94441.0,0.25535591]
[1745876746004,0.23265315,94442.0,94441.0,0.25535591]
[1745876746203,0.23065315,94442.0,94441.0,0.25535591]
[1745876746403,0.23565315,94442.0,94441.0,0.25535591]
[1745876747450,0.0973,94441.0,94430.0,1.15423671]
[1745876747626,0.0476,94439.0,94430.0,1.15423671]
[1745876747824,0.0476,94437.0,94430.0,1.16482656]
[1745876748029,0.0476,94437.0,94430.0,1.15423671]
[1745876748598,0.0483,94437.0,94430.0,1.15423671]
[1745876749010,0.0483,94435.0,94430.0,1.15423671]
[1745876749559,0.0483,94435.0,94430.0,1.15523671]
[1745876750773,0.0483,94435.0,94430.0,1.15423671]
[1745876752243,0.0503,94435.0,94430.0,1.15423671]
[1745876752998,0.0523,94435.0,94430.0,1.15423671]
[1745876753561,0.0543,94435.0,94430.0,1.15423671]
[1745876753760,0.0523,94435.0,94430.0,1.15423671]
[1745876754062,0.0543,94435.0,94430.0,1.15423671]
[1745876754288,0.0455,94434.0,94430.0,1.15423671]
[1745876754465,0.0475,94433.0,94430.0,1.15423671]
[1745876756064,0.0495,94433.0,94430.0,1.15423671]
[1745876756970,0.0515,94433.0,94430.0,1.15423671]
[1745876759374,0.0515,94433.0,94430.0,1.15401062]
[1745876760897,0.004,94433.0,94431.0,0.21391268]
[1745876761083,0.004,94433.0,94432.0,0.00211765]
[1745876761419,0.004,94433.0,94431.0,0.21179485]
[1745876761868,0.0493,94449.0,94445.0,0.01058817]
[1745876763806,0.0603,94449.0,94446.0,0.01058806]
[1745876764255,0.0543,94449.0,94442.0,0.0105885]
[1745876764462,0.0603,94449.0,94446.0,0.001]
[1745876764643,0.0603,94449.0,94446.0,0.01158806]
[1745876764840,0.01714201,94448.0,94446.0,0.001]
[1745876765163,0.02114201,94448.0,94440.0,0.01058873]
[1745876765398,0.004,94448.0,94438.0,0.01058895]
[1745876765754,0.01715447,94447.0,94445.0,0.01058817]
[1745876765973,0.0543,94449.0,94446.0,0.01058806]
[1745876766147,0.004,94448.0,94444.0,0.01058828]
[1745876766628,0.01714201,94447.0,94444.0,0.01058828]
[1745876766759,0.0478,94446.0,94443.0,0.01058839]
[1745876767503,0.0478,94446.0,94444.0,0.001]
[1745876767866,0.0478,94446.0,94443.0,0.01058839]
[1745876768090,0.0528,94446.0,94443.0,0.01158839]
[1745876769025,0.0568,94446.0,94443.0,0.01158839]
[1745876769223,0.0528,94446.0,94443.0,0.01158839]
[1745876769575,0.0518,94446.0,94443.0,0.01058839]
[1745876769764,0.0568,94446.0,94444.0,0.001]
[1745876770163,0.0518,94446.0,94443.0,0.01058839]
[1745876770521,0.0568,94446.0,94443.0,0.01158839]
[1745876770906,0.0528,94446.0,94443.0,0.01158839]
[1745876771108,0.0568,94446.0,94443.0,0.001]
[1745876771529,0.0465,94444.0,94443.0,0.001]
[1745876771858,0.06368484,94444.0,94443.0,0.001]
[1745876772673,0.11348484,94444.0,94443.0,0.001]
[1745876773234,0.12090089,94444.0,94439.0,0.01058884]
[1745876773536,0.12490089,94444.0,94443.0,0.001]
[1745876773972,0.12490089,94444.0,94440.0,0.01058873]
[1745876774150,0.12490089,94444.0,94439.0,0.01058884]
[1745876774326,0.12890089,94444.0,94439.0,0.01158884]
[1745876774530,0.13290089,94444.0,94439.0,0.001]
[1745876774736,0.13290089,94444.0,94430.0,1.15446579]
[1745876774737,0.0492,94442.0,94430.0,1.15446579]
[1745876774897,0.0492,94440.0,94430.0,1.15446579]
[1745876775255,0.0492,94438.0,94430.0,1.15446579]
[1745876775432,0.15609014,94437.0,94430.0,1.15446579]
[1745876775631,0.0492,94436.0,94430.0,1.15446579]
[1745876775832,0.10689014,94436.0,94430.0,1.15446579]
[1745876776062,0.0492,94435.0,94430.0,1.15446579]
[1745876776259,0.05661605,94435.0,94430.0,1.15446579]
[1745876776671,0.05661605,94435.0,94430.0,1.15546579]
[1745876777170,0.00741605,94434.0,94430.0,1.15546579]
[1745876777529,0.00741605,94434.0,94430.0,1.15446579]
[1745876777951,0.0512,94435.0,94430.0,1.15446579]
[1745876778152,0.10689014,94434.0,94430.0,1.15446579]
[1745876778357,0.0492,94433.0,94430.0,1.15446579]
[1745876780279,0.0512,94433.0,94430.0,1.15446579]
[1745876780479,0.0478,94431.0,94430.0,1.15446579]
[1745876783020,0.0488,94431.0,94430.0,1.15446579]
[1745876783378,0.0498,94431.0,94430.0,1.15446579]
[1745876787117,0.1641086,94431.0,94430.0,0.93010932]
[1745876787548,0.18121121,94431.0,94430.0,0.93010932]
[1745876820949,0.1641086,94431.0,94430.0,0.93010932]
[1745876825433,0.00941846,94431.0,94430.0,1.14190641]
[1745876825643,0.00941846,94431.0,94430.0,1.18840641]
[1745876825776,0.002,94431.0,94430.0,1.18840641]
[1745876832351,0.002,94431.0,94430.0,1.44376232]
[1745876833468,0.002,94431.0,94430.0,1.45967488]
[1745876841891,0.002,94431.0,94430.0,1.18546523]
[1745876842101,0.15509014,94431.0,94430.0,1.18546523]
[1745876842389,0.20279014,94431.0,94430.0,1.18546523]
[1745876844242,0.20279014,94431.0,94430.0,0.93010932]
[1745876844476,0.21709259,94431.0,94430.0,0.93010932]
[1745876858394,0.21709259,94431.0,94430.0,0.73920349]
[1745876865130,0.22450056,94431.0,94430.0,0.73920349]
[1745876895930,0.17830056,94431.0,94430.0,0.73920349]
[1745876897333,0.13060056,94431.0,94430.0,0.73920349]
[1745876897692,0.11629811,94431.0,94430.0,0.73920349]
[1745876918963,0.00940797,94431.0,94430.0,0.73920349]
[1745876919608,0.00940797,94431.0,94430.0,0.78500349]
[1745876920339,0.002,94431.0,94430.0,1.0403594]
[1745876920771,0.001,94431.0,94430.0,1.0403594]
[1745876921787,0.001,94431.0,94430.0,1.0423594]
[1745876922630,0.001,94431.0,94430.0,1.04786553]
[1745876928884,0.001,94431.0,94430.0,1.04786553]
[1745876942088,0.001,94431.0,94430.0,1.00206553]
[1745876953559,0.001,94431.0,94430.0,0.80823186]
[1745876963377,0.001,94431.0,94430.0,0.80817492]
[1745876974646,0.0483,94431.0,94430.0,0.80817492]
[1745876974841,0.001,94431.0,94430.0,0.80817492]
[1745877031011,0.00068798,94431.0,94430.0,0.80817492]
[1745877038236,0.00068798,94431.0,94430.0,0.83998192]
[1745877051946,0.00068798,94431.0,94430.0,0.94687206]
[1745877052829,0.00068798,94431.0,94430.0,0.96472635]
[1745877053259,0.00168798,94431.0,94430.0,0.97072635]
[1745877054128,0.001,94431.0,94430.0,0.97072635]
[1745877054560,0.001,94431.0,94430.0,0.97272635]
[1745877057513,0.001,94431.0,94430.0,1.31272635]
[1745877062673,0.0489,94449.0,94448.0,0.21175673]
[1745877062905,0.0493,94458.0,94457.0,0.21173655]
[1745877063027,0.06864286,94458.0,94457.0,0.21173655]
[1745877063453,0.0966,94458.0,94457.0,0.21173655]
[1745877063652,0.11595995,94458.0,94457.0,0.23159084]
[1745877064078,0.11695995,94458.0,94457.0,0.23159084]
[1745877064299,0.06765995,94458.0,94457.0,0.23159084]
[1745877064440,0.0483,94458.0,94457.0,0.57159084]
[1745877065063,0.001,94458.0,94457.0,0.57159084]
[1745877066733,0.002,94458.0,94457.0,0.57159084]
[1745877068556,0.002,94458.0,94457.0,0.57972463]
[1745877069690,0.002,94458.0,94457.0,0.5925318]
[1745877070134,0.002,94458.0,94457.0,0.27629687]
[1745877071465,0.002,94458.0,94457.0,0.48803342]
[1745877071824,0.002,94458.0,94457.0,0.59492356]
[1745877072746,0.001,94458.0,94457.0,0.59492356]
[1745877073248,0.0958482,94469.0,94468.0,0.2117119]
[1745877074677,0.09589379,94469.0,94468.0,0.2117119]
[1745877075134,0.09889379,94469.0,94468.0,0.2117119]
[1745877075353,0.10089379,94469.0,94468.0,0.2117119]
[1745877077417,0.05319379,94469.0,94468.0,0.2117119]
[1745877077641,0.00589379,94469.0,94466.0,0.2067173]
[1745877077859,0.00589379,94469.0,94466.0,0.20883419]
[1745877078275,0.00589379,94469.0,94468.0,0.2117119]
[1745877078753,0.00389379,94469.0,94468.0,0.2117119]
[1745877078970,0.00589379,94469.0,94468.0,0.46706781]
[1745877079399,0.00089379,94469.0,94468.0,0.46706781]
[1745877079617,0.0463,94475.0,94471.0,0.01058525]
[1745877079833,0.0476,94482.0,94479.0,0.01058436]
[1745877080012,0.002,94494.0,94491.0,0.22224156]
[1745877080206,0.00204558,94494.0,94493.0,0.21165588]
[1745877080622,0.04964558,94494.0,94493.0,0.21165588]
[1745877082765,0.09474558,94494.0,94493.0,0.21165588]
[1745877083210,0.09474558,94494.0,94493.0,0.22485707]
[1745877083870,0.1234707,94515.0,94503.0,0.01058167]
[1745877084071,4.557e-05,94509.0,94503.0,0.01058167]
[1745877084279,0.10689014,94508.0,94503.0,0.01058167]
[1745877084478,0.10689014,94508.0,94505.0,0.01058145]
[1745877084635,0.10689014,94508.0,94504.0,0.01058156]
[1745877085000,0.10689014,94508.0,94503.0,0.01058167]
[1745877085373,0.10689014,94508.0,94504.0,0.01058156]
[1745877085797,0.10989014,94508.0,94503.0,0.01058167]
[1745877085977,0.10989014,94508.0,94502.0,0.01058178]
[1745877086189,0.10989014,94508.0,94503.0,0.01058167]
[1745877086656,0.11089014,94508.0,94503.0,0.01058167]
[1745877086839,0.11089014,94508.0,94504.0,0.01058156]
[1745877087052,0.0958,94507.0,94504.0,0.01058156]
[1745877087272,0.15339014,94506.0,94504.0,0.01058156]
[1745877087471,0.0465,94505.0,94504.0,0.01058156]
[1745877087676,0.15339014,94505.0,94504.0,0.01058156]
[1745877088064,0.15339014,94505.0,94496.0,0.01058245]
[1745877088245,0.0477,94503.0,94501.0,0.01058189]
[1745877089884,0.0487,94503.0,94501.0,0.01058189]
[1745877090676,0.0507,94503.0,94501.0,0.01058189]
[1745877091686,0.0457,94503.0,94501.0,0.01058189]
[1745877094117,0.0457,94503.0,94502.0,0.21163573]
[1745877094941,0.0437,94503.0,94502.0,0.21163573]
[1745877095143,0.0457,94503.0,94502.0,0.21163573]
[1745877095578,0.0447,94503.0,94502.0,0.21163573]
[1745877096001,0.0457,94503.0,94502.0,0.21163573]
[1745877102276,0.003,94503.0,94502.0,0.21163573]
[1745877103496,0.003,94503.0,94502.0,0.23144768]
[1745877111700,0.003,94503.0,94502.0,0.01981195]
[1745877112712,0.003,94503.0,94502.0,0.23144768]
[1745877119113,0.003,94503.0,94502.0,0.82680359]
[1745877119334,0.003,94503.0,94502.0,0.92240359]
[1745877119990,0.001,94503.0,94502.0,0.92240359]
[1745877120220,4.557e-05,94509.0,94508.0,0.55162229]
[1745877120668,4.557e-05,94509.0,94508.0,0.57143424]
[1745877121264,4.557e-05,94509.0,94508.0,0.67832438]
[1745877121530,0.0499354,94551.0,94538.0,0.55155514]
[1745877121757,0.0499354,94551.0,94548.0,0.01057663]
[1745877121981,0.05007217,94551.0,94550.0,0.55152829]
[1745877122204,1e-08,94554.0,94553.0,0.56606243]
[1745877122425,0.004,94569.0,94563.0,0.55149921]
[1745877122659,0.004,94569.0,94568.0,0.55148802]
[1745877123550,0.002,94585.0,94583.0,0.21145448]
[1745877123760,0.00245573,94584.0,94583.0,0.21145448]
[1745877124896,0.000848,94598.0,94597.0,0.21142319]
[1745877125118,0.00098466,94598.0,94597.0,0.21142319]
[1745877125559,0.00098466,94598.0,94597.0,0.55142319]
[1745877126425,0.00898466,94598.0,94597.0,0.55142319]
[1745877127062,0.00898466,94598.0,94597.0,0.56411753]
[1745877130218,0.00898466,94598.0,94592.0,0.01057171]
[1745877130219,0.10368466,94598.0,94592.0,0.01057171]
[1745877130433,0.10368466,94598.0,94596.0,0.21142404]
[1745877130644,0.12808018,94597.0,94595.0,0.01057138]
[1745877130848,0.10689014,94597.0,94592.0,0.01851367]
[1745877131058,0.02112052,94596.0,94594.0,0.2114299]
[1745877131301,0.02112052,94596.0,94593.0,0.0105716]
[1745877132547,0.02212052,94596.0,94593.0,0.0105716]
[1745877133111,0.02212052,94596.0,94594.0,0.2114299]
[1745877133315,0.02212052,94596.0,94587.0,0.22201674]
[1745877133580,0.10689014,94595.0,94589.0,0.01057205]
[1745877134031,0.0211154,94594.0,94589.0,0.01057205]
[1745877134248,0.0211154,94594.0,94592.0,0.01057171]
[1745877136166,0.0221154,94594.0,94592.0,0.01057171]
[1745877136406,0.0221154,94594.0,94593.0,0.21143213]
[1745877136596,0.0261154,94594.0,94593.0,0.21143213]
[1745877137421,0.0221154,94594.0,94593.0,0.21143213]
[1745877137908,0.0261154,94594.0,94593.0,0.21143213]
[1745877138338,0.0251154,94594.0,94593.0,0.21143213]
[1745877138517,0.0261154,94594.0,94593.0,0.21143213]
[1745877140727,0.001,94594.0,94593.0,0.21143213]
[1745877141148,0.04988466,94598.0,94596.0,0.21142415]
[1745877142195,0.00098466,94598.0,94596.0,0.21142415]
[1745877142708,0.00498466,94598.0,94596.0,0.21142415]
[1745877143163,0.00598466,94598.0,94596.0,0.21142415]
[1745877146171,0.10689014,94597.0,94595.0,0.22199757]
[1745877147411,0.00598466,94598.0,94597.0,0.21142319]
[1745877147638,0.00598466,94598.0,94597.0,0.5535373]
[1745877147869,0.00598466,94598.0,94597.0,0.55142319]
[1745877147870,0.00198466,94598.0,94597.0,0.55142319]
[1745877148095,0.00098466,94598.0,94597.0,0.55142319]
[1745877148330,0.002,94635.0,94608.0,0.01056993]